Cogmind - Beta 14 @@@ ROGUE MODE // 2024.09.06 @ 12:23:54 Player: FreshFromage Result: Destroyed by D-53 Grenadier with Mini Grenade Launcher Performance ------------- Evolutions (1) 500 Regions Visited (4) 800 Robots Destroyed (26) 130 Value Destroyed (745) 745 Prototype IDs (5) 100 Alien Tech Used (0) 0 Bonus (67) 67 TOTAL SCORE: 2342 Bonus ------- Follower Combat Kills 67 Cogmind --------- Core Integrity 0/400 Matter 300/300 Energy 99/100 System Corruption 0% Temperature Cool (0) Movement Core (50) Location -9/Mines Parts ------- > --- POWER (1) -------- (None) > --- PROPULSION (3) --- (None) > --- UTILITY (3) ------ (None) > --- WEAPON (2) ------- (None) > --- INVENTORY (5) ---- Light Ion Engine Light Nuclear Core Light Nuclear Core Signal Interpreter Mini Grenade Launcher Peak State ------------ > --- POWER ------------ Light Nuclear Core > --- PROPULSION ------- Aluminum Leg Aluminum Leg Aluminum Leg > --- UTILITY ---------- Large Storage Unit Light Armor Plating Hacking Suite > --- WEAPON ----------- Autogun Autogun > --- INVENTORY -------- Ion Engine Light Ion Engine Light Nuclear Core Light Nuclear Core Light Treads Aluminum Leg Aluminum Leg Large Matter Pod Signal Interpreter Autogun Autogun Mini Grenade Launcher Mini Grenade Launcher Mini Grenade Launcher [Rating: 17] Favorites ----------- Power Light Nuclear Core Engine Light Ion Engine Power Core Light Nuclear Core Propulsion Aluminum Leg Treads Light Treads Leg Aluminum Leg Utility Hacking Suite Storage Large Storage Unit Processor Improved Targeting Computer Hackware Hacking Suite Protection Light Armor Plating Weapon Autogun Energy Gun Medium Laser Ballistic Gun Autogun Launcher Mini Grenade Launcher Build | -11 -10 -10 -9 -9 ------- Run | Yrd Mat Min Mat Min Slots Evolved 2 | . . . 2 . Power . | . . . . . Propulsion 1 | . . . 1 . Utility 1 | . . . 1 . Weapon . | . . . . . Parts Attached 44 | 8 9 . 20 7 Power 7 | 2 1 . 2 2 Engine 4 | 2 1 . . 1 Core 3 | . . . 2 1 Reactor . | . . . . . Propulsion 13 | 2 4 . 4 3 Treads 1 | . . . . 1 Leg 12 | 2 4 . 4 2 Wheel . | . . . . . Hover . | . . . . . Flight . | . . . . . Utility 6 | 1 2 . 3 . Device . | . . . . . Storage 3 | 1 1 . 1 . Processor 1 | . . . 1 . Hackware 1 | . 1 . . . Protection 1 | . . . 1 . Artifact . | . . . . . Weapon 18 | 3 2 . 11 2 Energy Gun 1 | 1 . . . . Energy Cannon . | . . . . . Ballistic Gun 12 | 2 2 . 6 2 Ballistic Cannon . | . . . . . Launcher 5 | . . . 5 . Special Weapon . | . . . . . Impact Weapon . | . . . . . Slashing Weapon . | . . . . . Piercing Weapon . | . . . . . Special Melee Weapon . | . . . . . Unidentified Prototypes . | . . . . . Parts Lost 7 | . . . . 7 Power 2 | . . . . 2 Propulsion 3 | . . . . 3 Utility 1 | . . . . 1 Weapon 1 | . . . . 1 Highest Loss Streak 7 | . . . . 7 To Critical Strikes . | . . . . . Average Slot Usage (%) 92 | . 98 100 88 65 Engine 7 | . 14 14 . 3 Core 4 | . . . 10 1 Leg 27 | . 28 28 29 17 Storage 12 | . 14 14 11 10 Processor 2 | . . . 3 10 Hackware 9 | . 12 14 7 . Protection 2 | . . . 4 . Ballistic Gun 24 | . 27 28 20 20 Peak Build Rating 17 | 6 12 12 17 16 Average Rating 13 | 4 11 12 15 10 On Entrance 9 | . 6 12 12 16 Naked Turns 8 | . . . . 8 Heaviest Build 34 | 14 21 19 34 33 Greatest Support 30 | 20 20 20 30 20 Greatest Overweight (x) 3 | 3 1 . 1 1 Average Overweight (x) . | . . . . . Largest Inventory Capacity 15 | 8 10 10 15 15 Average Capacity 12 | 7 9 10 14 14 Most Carried 15 | 4 10 10 15 15 Average Carried 10 | 1 8 10 13 10 Final Capacity 15 | 8 10 10 15 5 Final Carried 15 | 4 10 10 15 5 Class Distribution -------------------- 71% | Mutant 28% | Scavenger-Mutant Dominant Class ---------------- Mutant | -10/Materials Mutant | -10/Mines Scavenger-Mutant | -9/Materials Mutant | -9/Mines Resources | -11 -10 -10 -9 -9 ----------- Run | Yrd Mat Min Mat Min Matter Collected 1331 | 190 159 229 394 359 Remotely . | . . . . . Salvage Created 811 | . 159 . 535 117 Parts 54 | . 12 . 37 5 Haulers Intercepted . | . . . . . Recyclers Shooed 1 | . . . . 1 Parts Field Recycled . | . . . . . Retrieved Matter . | . . . . . Parts Self-Destructed . | . . . . . Prevented . | . . . . . Kills | -11 -10 -10 -9 -9 ------- Run | Yrd Mat Min Mat Min Combat Hostiles Destroyed 20 | . 5 . 12 3 Guns 15 | . 5 . 7 3 AOE 5 | . . . 5 . Classes Destroyed 9 | . 3 . 5 1 Worker 3 | . . . 3 . Tunneler 1 | . . . 1 . Recycler 1 | . . . 1 . Operator 1 | . 1 . . . Swarmer 5 | . 2 . 3 . Grunt 11 | . 3 . 6 2 Brawler 1 | . . . 1 . Duelist 1 | . . . . 1 Sentry 2 | . . . 2 . Best Kill Streak 4 | . 2 . 4 3 Combat Bots Only 3 | . 2 . 3 3 Max Kills in Single Turn 4 | . 1 . 4 2 Gunslinging 1 | . . . . 1 Exploded 3 | . . . 3 . Melee . | . . . . . Uniques/NPCs Destroyed . | . . . . . Combat | -11 -10 -10 -9 -9 -------- Run | Yrd Mat Min Mat Min Hostile Shots Fired 128 | . 24 1 43 60 Missed 34 | . 10 . 14 10 Damage Taken 1464 | . 177 10 323 954 Core 462 | . 27 . 32 403 Absorbed by Shields . | . . . . . Regen/Repaired (Parts) 56 | . . . 56 . Core Remaining (%) 94 | 100 . 89 . . Volleys Fired 63 | . 18 1 27 17 Largest 2 | . 2 2 2 2 Hottest 60 | . 46 46 60 46 Shots Fired 124 | . 36 2 53 33 Gun 119 | . 36 2 48 33 Cannon . | . . . . . Launcher 5 | . . . 5 . Special . | . . . . . Kinetic 119 | . 36 2 48 33 Thermal . | . . . . . Explosive 5 | . . . 5 . Electromagnetic . | . . . . . Robot Hit Streak 12 | . 10 5 12 11 Robot Miss Streak 8 | . 3 . 6 8 Penetration Max . | . . . . . Secondary Targets 1 | . . . . 1 Max Gunslinging Chain 1 | . . . . 1 Shots Hit Robots 79 | . 23 2 26 28 Core Hits 36 | . 9 . 23 4 Critical Kills . | . . . . . Critical Parts Destroyed . | . . . . . Critical Strikes . | . . . . . Melee Attacks . | . . . . . Impact . | . . . . . Slashing . | . . . . . Piercing . | . . . . . Sneak Attacks . | . . . . . Combat Hostiles . | . . . . . Follow-up Attacks . | . . . . . Damage Inflicted 1704 | . 350 35 864 455 Guns 1287 | . 350 35 448 454 Cannons . | . . . . . Explosions 409 | . . . 409 . Melee . | . . . . . Ramming 8 | . . . 7 1 Kinetic 1287 | . 350 35 448 454 Thermal . | . . . . . Explosive 409 | . . . 409 . Electromagnetic . | . . . . . Impact . | . . . . . Slashing . | . . . . . Piercing . | . . . . . Highest Corruption . | . . . . . Average Corruption . | . . . . . Corruption Purged . | . . . . . Corruption Blocked . | . . . . . Overload Shots . | . . . . . Overflow Damage . | . . . . . Projectiles . | . . . . . Explosions . | . . . . . Melee . | . . . . . Knockbacks . | . . . . . Impact . | . . . . . Kinetic . | . . . . . Secondary . | . . . . . Self-Inflicted Damage . | . . . . . Shots . | . . . . . Rammed . | . . . . . Targets Rammed 2 | . . . 1 1 Kicked 2 | . . . 1 1 Crushed . | . . . . . Highest Temperature 34 | . 30 6 34 26 Average Temperature 9 | . 9 4 9 8 Received Heat Transfer 474 | . 81 . 177 216 Siege Activations . | . . . . . Robots Corrupted . | . . . . . Combat Hostiles . | . . . . . Parts Fried . | . . . . . Impact Corruptions . | . . . . . Robots Melted . | . . . . . Combat Hostiles . | . . . . . Parts Melted . | . . . . . Heat Transferred . | . . . . . Parts Sabotaged . | . . . . . Parts Stolen . | . . . . . Parts Stripped . | . . . . . Power Chain Reactions . | . . . . . Alert | -11 -10 -10 -9 -9 ------- Run | Yrd Mat Min Mat Min Peak Influence 314 | . 199 162 314 78 Initial 63 | . . . 63 63 Average 90 | . 83 10 152 66 Maximum Alert Level 1 | . . . 1 . Low Security (%) 82 | 100 100 100 58 100 Level 1 17 | . . . 41 . Level 2 . | . . . . . Level 3 . | . . . . . Level 4 . | . . . . . Level 5 . | . . . . . High Security . | . . . . . Max Security . | . . . . . Squads Dispatched 3 | . 1 . 2 . Investigation 2 | . 1 . 1 . Extermination . | . . . . . Reinforcement 1 | . . . 1 . Assault . | . . . . . Garrison . | . . . . . Intercept . | . . . . . Searches Triggered . | . . . . . Construction Impeded 1 | . . . 1 . Haulers Reinforced . | . . . . . Active Scanning Responses . | . . . . . Cargo Convoy Interrupts . | . . . . . Stealth | -11 -10 -10 -9 -9 --------- Run | Yrd Mat Min Mat Min Distress Signals 2 | . . . 2 . Communications Jammed . | . . . . . Distress Signals . | . . . . . Times Spotted 45 | . 10 6 24 5 Peak Tracking Total 7 | . 4 6 7 3 Tactical Retreats 2 | . 2 . . . Traps | -11 -10 -10 -9 -9 ------- Run | Yrd Mat Min Mat Min Traps Triggered . | . . . . . Indirectly . | . . . . . Trap Hack Attempts . | . . . . . Triggered . | . . . . . Disarmed . | . . . . . Reprogrammed . | . . . . . Reused . | . . . . . Traps Extracted . | . . . . . Installed . | . . . . . Triggered . | . . . . . Machines | -11 -10 -10 -9 -9 ---------- Run | Yrd Mat Min Mat Min Machines Disabled 9 | . . . 9 . Max in Single Turn 3 | . . . 3 . Machines Repaired . | . . . . . Machines Dismantled . | . . . . . Machines Sabotaged . | . . . . . Overloaded Fab Kills . | . . . . . Hacking | -11 -10 -10 -9 -9 --------- Run | Yrd Mat Min Mat Min Machines Accessed 10 | . 5 1 4 . Terminals 8 | . 5 . 3 . Fabricators . | . . . . . Repair Stations 1 | . . . 1 . Recycling Units . | . . . . . Scanalyzers . | . . . . . Garrison Access . | . . . . . Total Hacks 35 | . 16 1 18 . Successful 23 | . 9 1 13 . Failed 10 | . 6 . 4 . Catastrophic 2 | . . . 2 . Database Lockouts 2 | . 1 . 1 . Manual 19 | . 10 . 9 . Terminals 32 | . 16 . 16 . Fabricators . | . . . . . Repair Stations 2 | . . . 2 . Recycling Units . | . . . . . Scanalyzers . | . . . . . Garrison Access . | . . . . . Terminal Hacks 17 | . 6 1 10 . Record 1 | . 1 . . . Robot Analysis 3 | . 1 . 2 . Prototype ID Bank 3 | . 2 . 1 . Open Door 1 | . . 1 . . Branch Access Points 2 | . 1 . 1 . Repair Station Index 1 | . . . 1 . Alert Level 1 | . . . 1 . Unreport Threat 1 | . . . 1 . Locate Traps 2 | . 1 . 1 . Investigation Status 1 | . . . 1 . Hauler Manifests 1 | . . . 1 . Fabricator Hacks . | . . . . . Repair Station Hacks 2 | . . . 2 . Scan Component 1 | . . . 1 . Repair 1 | . . . 1 . Recycling Unit Hacks . | . . . . . Scanalyzer . | . . . . . Garrison Access Hacks . | . . . . . Unauthorized Hacks 4 | . 3 . 1 . Terminals 4 | . 3 . 1 . Botnet 4 | . 3 . 1 . Fabricators . | . . . . . Repair Stations . | . . . . . Recycling Units . | . . . . . Scanalyzers . | . . . . . Garrison Access . | . . . . . Data Cores Recovered 1 | . 1 . . . Used 1 | . 1 . . . Hacking Detections 8 | . 4 . 4 . Full Trace Events 1 | . 1 . . . Feedback Events . | . . . . . Feedback Blocked . | . . . . . Robot Schematics Acquired . | . . . . . Robots Built . | . . . . . Authchips . | . . . . . Time . | . . . . . Total Robot Build Rating . | . . . . . Part Schematics Acquired . | . . . . . Parts Built . | . . . . . Authchips . | . . . . . Time . | . . . . . Total Part Build Rating . | . . . . . Parts Repaired 1 | . . . 1 . Time 32 | . . . 32 . Parts Recycled . | . . . . . Recycled Matter . | . . . . . Retrieved Matter . | . . . . . Retrieved Components . | . . . . . Parts Scanalyzed . | . . . . . Part Schematics Acquired . | . . . . . Parts Damaged . | . . . . . Bothacking | -11 -10 -10 -9 -9 ------------ Run | Yrd Mat Min Mat Min Used RIF Installer . | . . . . . Robots Hacked . | . . . . . Non-combat . | . . . . . Combat . | . . . . . Robot Hacks Applied . | . . . . . Relay Couplers Released . | . . . . . Fabnet Peak Effective % . | . . . . . Robots Rewired . | . . . . . Allies Hacked . | . . . . . Hacks Repelled . | . . . . . Allies | -11 -10 -10 -9 -9 -------- Run | Yrd Mat Min Mat Min Total Allies 3 | . . 3 . . Largest Group 3 | . . 3 3 . Highest-Rated Group 40 | . . 40 40 . Highest-Rated Ally 16 | . . 16 16 . Total Orders . | . . . . . Ally Attacks 18 | . . 10 8 . Total Damage 225 | . . 138 87 . Kills 8 | . . 6 2 . Allies Corrupted . | . . . . . Allies Melted . | . . . . . Intel | -11 -10 -10 -9 -9 ------- Run | Yrd Mat Min Mat Min Robot Analysis Total 3 | . 1 . 2 . Derelict Logs Recovered 2 | . . 2 . . Drone Launches . | . . . . . Drone Recoveries . | . . . . . Exploration | -11 -10 -10 -9 -9 ------------- Run | Yrd Mat Min Mat Min Turns Passed 2272 | 54 481 611 991 135 Spaces Moved 1257 | 34 288 479 404 52 Core 22 | 6 . . . 16 Treads . | . . . . . Legs 1235 | 28 288 479 404 36 Wheels . | . . . . . Hover . | . . . . . Flight . | . . . . . Fastest Speed 50 | 50 120 120 120 50 Average Speed 146 | 119 136 120 186 146 Slowest Speed 200 | 200 190 120 190 190 Overloaded Moves . | . . . . . Propulsion Burnouts . | . . . . . Robots Hopped . | . . . . . Cave-ins Triggered . | . . . . . Exploration Rate (%) 42 | 4 60 88 48 12 Regions Visited 4 Branch Regions 2 Pre-discovered Areas 1 | . . 1 . . Known Exits Taken 2 | . 1 . 1 . Unknown Exits Taken 2 | 1 . 1 . . Scrap Searched 2 | . . 1 . 1 Spaces Dug 8 | . . . 8 . Terrain Destroyed 66 | . . . 66 . Melee . | . . . . . Projectile . | . . . . . AOE 66 | . . . 66 . Terrain Rammed . | . . . . . Walls Destroyed . | . . . . . Machines Disabled . | . . . . . Actions | -11 -10 -10 -9 -9 --------- Run | Yrd Mat Min Mat Min Total 1578 | 43 349 513 590 83 Wait 188 | . 18 34 134 2 Move 1253 | 33 287 478 403 52 Hop . | . . . . . Pick Up 15 | 2 8 . 2 3 Fast Attach 13 | 6 2 . 4 1 Attach 6 | . . . . 6 Detach . | . . . . . Swap 25 | 2 7 . 16 . Drop 13 | . 9 . 3 1 Fire 63 | . 18 1 27 17 Melee . | . . . . . Ram . | . . . . . Kick 2 | . . . 1 1 Crush . | . . . . . Escape Stasis . | . . . . . Rewire . | . . . . . Trap . | . . . . . Miscellaneous . | . . . . . Route ------- -11/Scrapyard -10/Materials (discovered 3 exits: *Mat x2 / *Min) -10/Mines (discovered 2 exits: *Mat x2) -9/Materials -9/Mines History --------- Turn | Location | Event 27 | -11/Scrapyard | Discovered new exit (range 14) 55 | -11/Scrapyard | Entered Materials 263 | -10/Materials | Discovered new exit (range 10) 306 | -10/Materials | Build established: Mutant 354 | -10/Materials | Discovered new exit (range 14) 370 | -10/Materials | Central database locked down 451 | -10/Materials | Identified exit to Mines 451 | -10/Materials | Discovered new exit (range 16) 536 | -10/Materials | Entered Mines 588 | -10/Mines | YI-UF0 nonchalantly dropped a Grenade Launcher on the ground 608 | -10/Mines | Assisted by bots powering up and referring to "LRC-V3" 737 | -10/Mines | Found the Drone Emporium 942 | -10/Mines | Learned location of Zion (-6) 1063 | -10/Mines | Discovered new exit (range 13) 1135 | -10/Mines | Discovered new exit (range 3) 1147 | -10/Mines | Entered Materials 1147 | -9/Materials | Accompanied by 3 allies 1147 | -9/Materials | Evolved 2 slots: Propulsion x1, Utility x1 1200 | -9/Materials | Repaired Autogun 1570 | -9/Materials | Identified exit to Mines 1570 | -9/Materials | Central database locked down 1795 | -9/Materials | Build established: Scavenger-Mutant 2138 | -9/Materials | Entered Mines 2193 | -9/Mines | Lost 7 parts (2p3n1u1w) 2250 | -9/Mines | Assembled infested the area 2265 | -9/Mines | Released all parts (7) 2267 | -9/Mines | Core integrity fell below 50% 2269 | -9/Mines | Core integrity fell below 20% 2273 | -9/Mines | Destroyed by D-53 Grenadier with Mini Grenade Launcher Last Messages --------------- 02249_ Searching scrap... 02249_ Found 38 Matter. 02249_ Found Hcp. Matter Pod. 02249_ Found 54 Matter. 02250_ ALERT: Infestation in the mines, dispatching Demolisher response squad. 02250_ Acquired 54 matter. 02251_ Acquired 38 matter. 02257_ Acquired Hcp. Matter Pod. 02265_ Released Imp. Ion Engine. 02265_ Released Autogun. 02265_ Released Aluminum Leg. 02265_ Released Imp. Targeting Computer. 02265_ Released Lrg. Storage Unit. 02266_ C-30 ARC bursts open, deploying its payload. 02266_ D-53 Grenadier unfolds itself. 02270_ R-06 Scavenger collects Mni. Grenade Launcher. 02271_ The unstable cave ceiling collapses. Map ----- +----------------------------------------------------+ | ?????????????????????????????????????????????????? | | ?????????????????????????????????????????????????? | | ?????????????????????????????????????????????????? | | ?????????????????????????????????????????????????? | | ?????????????????????????????????????????????????? | | ?????????????????????????????????????????????????? | | ?????????????????????????????????????????????????? | | ?????????????????????????????????????????????????? | | ?????????????????????????????????????????????????? | | ?????????????????????????????????????????????????? | | ?????????????????????????????????????????????????? | | ?????????????????????????????????????????????????? | | ?????????????????????????????????????????????????? | | ?????????????????????????????????????????????????? | | ?????????????????????????????????????????????????? | | ?????????????????????????####??????????? ????????? | | ????????????????????????## ##?????????? ????????? | | ????????????????????????# #?????????? ????????? | | ????????????????????????# ##????????? ????????? | | ???????????????????????### #????????? ?#######? | | ???????????????????????# # ##???????? ?# ! #? | | ???????????????????????# ##??????# ?# = #? | | ??????????????????????## ##???### ## #? | | ??????????????????????# ## #? | | ??????????????????????## ####### # #? | | ???????????????????????# @ ##????# ## ####? | | ???????????????????????# #????# ## #???? | | ???????????????????????# #????# #???? | | ???????????????????????# dd #????# ####???? | | ???????????????????????## [ ###### #??????? | | ?????????????????????????## =[! r% #??????? | | ??????????????????????????# [* ## #####??????? | | ??????????????????????????# != ## #??????????? | | ??????????????????????????# # ##### ??????????? | | ???????????????????????? ####???####?????????? | | ????????????????????? #???????????????????? | | ??????????????????? #########???????????????????? | | ????????????????? ??????????????????????????????? | | ?????????????????????????????????????????????????? | | ?????????????????????????????????????????????????? | | ?????????????????????????????????????????????????? | | ?????????????????????????????????????????????????? | | ?????????????????????????????????????????????????? | | ?????????????????????????????????????????????????? | | ?????????????????????????????????????????????????? | | ?????????????????????????????????????????????????? | | | | | | | | | +----------------------------------------------------+ Best States ------------- Heat Dissipation 28 Energy Generation 14 Energy Capacity 265 Matter Stores 300 Matter Capacity 300 Sight Range 16 Terrain Scan Density 10 Armor Coverage 150 Evasion (%) 55 Targeting Accuracy 6 Recoil Reduction 1 Offensive Hacking 10 Item Schematics ----------------- None Robot Schematics ------------------ None Fabricated ------------ Nothing Alien Tech Used ----------------- None Achievements -------------- None Challenges ------------ None Game ------ Seed RestorationWaveNeutralizer Manual? 0 Play Time 00:24:23 Cumulative 69.5 hours Start 2024.09.06 @ 12:00:45 End 2024.09.06 @ 12:23:54 Sessions 1 Manual Loads 0 Difficulty Rogue Special Mode None Game No. 33 Rogue 33 Adventurer 0 Explorer 0 Win Type - Total 2 Types 2/0/0/0/0/0/0/0/0 Lore% 29 Gallery% 37 Achievement% 36 Wizard Run 0 Options --------- Layout 1 ASCII 0 Keyboard 0 Movement Vi Keybinds 0 Fullscreen 1 Font 24/Smallcaps Map View 50x35 Zoom Use 0% Tactical HUD 1 Map Filters NONE Filters NONE Steam 1 RUN: e3f6b013-4899-4ddf-ab31-1c08632ca1f4